bitfinex/quotes_ETHUSD_20260219
["timestamp","ask_amount","ask_price","bid_price","bid_amount"]
[1771528070120,0.926,1948.7,1946.3,1.04273821]
[1771528070276,1.0192054,1948.9,1947.5,1.04273821]
[1771528070479,1.0192054,1948.9,1947.1,5.13557929]
[1771528070480,1.0192054,1948.4,1947.1,0.7954551]
[1771528070669,1.0192054,1947.6,1946.6,6.17983824]
[1771528070868,6.40363879,1948.2,1946.7,1.04273821]
[1771528071099,1.0192054,1948.7,1946.8,1.04273821]
[1771528071409,1.0192054,1948.1,1946.9,1.96873821]
[1771528071708,1.0192054,1948.1,1947.0,1.04273821]
[1771528072270,1.0192054,1947.9,1946.9,0.926]
[1771528072505,1.0192054,1947.7,1946.9,0.926]
[1771528072774,2.30257295,1948.0,1947.0,1.04273821]
[1771528072981,1.0192054,1948.0,1947.0,1.04273821]
[1771528073327,1.283332,1948.1,1947.0,1.04273821]
[1771528073530,1.28326667,1948.2,1947.0,1.04273821]
[1771528074220,1.28326667,1948.2,1947.1,2.32669897]
[1771528074820,1.28326667,1948.2,1947.2,1.04273821]
[1771528075120,2.30247207,1948.2,1947.2,1.04273821]
[1771528075619,2.30247207,1948.2,1946.9,3.25278759]
[1771528075620,1.0192054,1948.1,1946.9,3.25278759]
[1771528075907,1.0192054,1947.9,1946.9,3.25278759]
[1771528076111,1.0192054,1947.9,1946.9,1.96873821]
[1771528076287,1.28349933,1947.8,1946.9,3.25279584]
[1771528076488,5.13269891,1948.3,1946.9,3.25279584]
[1771528076489,1.2832358,1948.2,1947.0,1.04273821]
[1771528076685,1.0192054,1948.4,1947.0,1.04273821]
[1771528076880,1.0192054,1948.4,1947.2,1.04273821]
[1771528077412,5.13215293,1948.7,1947.4,1.04273821]
[1771528077413,1.0192054,1948.7,1947.4,1.04273821]
[1771528077581,2.30215353,1948.7,1947.4,1.04273821]
[1771528078527,2.30215353,1948.7,1947.6,1.04273821]
[1771528078727,1.28294813,1948.7,1947.8,1.04273821]
[1771528078930,1.0192054,1949.0,1947.8,1.04273821]
[1771528079131,2.30196531,1949.0,1947.8,1.04273821]
[1771528079354,3.51356885,1949.5,1947.8,1.04273821]
[1771528079628,1.0192054,1950.4,1949.0,1.04273821]
[1771528079827,1.0192054,1950.2,1948.9,0.926]
[1771528080026,1.28159122,1950.7,1948.9,0.926]
[1771528080027,1.0192054,1949.9,1948.9,0.926]
[1771528080325,1.0192054,1950.2,1948.9,0.926]
[1771528080530,1.28198553,1950.1,1949.1,1.28264327]
[1771528080733,4.041039,1950.0,1949.1,1.04273821]
[1771528081035,4.041039,1950.0,1948.9,6.05695766]
[1771528081036,1.0192054,1949.9,1948.9,0.926]
[1771528081634,3.195253,1949.6,1948.9,0.926]
[1771528081836,2.5624426,1949.9,1948.9,2.2087607]
[1771528082039,1.25749867,1950.0,1948.9,3.37850818]
[1771528082250,1.28198553,1950.1,1949.0,1.16974748]
[1771528082540,1.25749867,1950.0,1948.9,2.20875148]
[1771528082719,1.28211703,1949.9,1948.9,2.20875148]
[1771528082914,2.53955368,1950.0,1949.0,1.16974748]
[1771528083121,11.686482,1950.1,1949.0,1.16974748]
[1771528083439,3.093869,1950.1,1949.0,1.16974748]
[1771528083741,6.38522102,1950.2,1949.0,1.16974748]
[1771528084120,5.12772235,1950.2,1949.0,1.16974748]
[1771528084315,2.53928702,1950.4,1949.0,1.16974748]
[1771528084526,1.25749867,1950.2,1949.0,1.16974748]
[1771528084726,1.28188574,1950.3,1949.3,1.16974748]
[1771528086236,2.53938441,1950.3,1949.3,1.16974748]
[1771528086445,3.136869,1950.2,1949.3,1.16974748]
[1771528086617,2.21201,1950.2,1949.3,1.16974748]
[1771528087114,1.28198553,1950.1,1949.3,2.45224822]
[1771528087320,1.28198553,1950.1,1949.3,1.16974748]
[1771528087518,1.28198553,1950.1,1948.8,6.40363879]
[1771528087519,1.22653139,1949.9,1948.6,3.92612927]
[1771528087719,1.14461139,1949.7,1948.6,3.92612927]
[1771528087921,1.14461139,1949.7,1948.5,3.44417869]
[1771528088324,16.69956539,1949.6,1948.5,3.44417417]
[1771528088532,1.14461139,1949.5,1948.5,0.925]
[1771528089132,1.14461139,1949.3,1948.5,0.925]
[1771528089938,1.14461139,1949.3,1948.5,2.20802547]
[1771528091455,1.28252743,1949.3,1948.5,2.20802547]
[1771528091960,1.28252743,1949.3,1948.5,0.925]
[1771528091961,1.14461139,1949.2,1948.5,0.925]
[1771528092327,1.14461139,1949.2,1948.0,2.51947775]
[1771528092742,1.14461139,1949.0,1947.8,2.20849131]
[1771528092947,1.14461139,1949.0,1947.8,3.44463248]
[1771528093147,4.795263,1949.2,1947.9,1.23614117]
[1771528093347,2.42713882,1949.3,1947.9,1.23614117]
[1771528093547,2.42713882,1949.3,1948.1,1.23614117]
[1771528093766,2.786117,1949.2,1948.1,1.23614117]
[1771528094267,2.856397,1949.0,1948.1,1.23614117]
[1771528094467,1.28252743,1949.3,1948.1,1.23614117]
[1771528094665,2.337216,1949.2,1948.1,1.23614117]
[1771528095149,1.28252743,1949.3,1948.1,1.23614117]
[1771528095562,1.28264327,1949.1,1948.2,2.51937697]
[1771528096271,7.55811,1949.0,1948.2,1.23614117]
[1771528096446,7.55811,1949.0,1948.6,0.001]
[1771528097879,1.28277489,1948.9,1948.6,0.001]
[1771528098240,2.42738628,1948.9,1947.9,2.5195278]
[1771528098572,1.14461139,1948.4,1947.2,1.23614117]
[1771528098951,3.338721,1948.3,1947.2,1.23614117]
[1771528099156,2.15153139,1948.7,1947.2,1.23614117]
[1771528099372,5.63225,1948.6,1947.2,1.23614117]
[1771528099573,2.15153139,1948.7,1947.2,1.23614117]
[1771528099574,6.59632,1948.4,1947.2,1.23614117]
[1771528099879,1.2832358,1948.2,1947.3,1.28382889]
[1771528100176,1.2832358,1948.2,1947.3,2.51997006]
[1771528100738,2.42784719,1948.2,1947.0,1.23614117]
[1771528101059,1.14461139,1948.0,1946.9,2.20907932]
[1771528101260,4.22989839,1947.9,1946.9,0.925]
[1771528101461,3.7381095,1947.9,1946.9,2.20906153]
[1771528101757,1.2832358,1948.2,1947.0,1.23614117]
[1771528101758,2.354884,1948.1,1947.0,1.23614117]
[1771528101963,9.324141,1947.9,1947.1,1.23614117]
[1771528103055,1.28336755,1948.0,1947.1,1.23614117]
[1771528103263,6.27650368,1948.6,1947.2,1.23614117]
[1771528103564,2.20793122,1948.7,1947.2,1.23614117]
[1771528103752,3.35254261,1948.7,1947.2,1.23614117]
[1771528103961,1.28303823,1948.5,1947.4,1.23614117]
[1771528104273,2.20795397,1948.7,1947.5,1.23614117]
[1771528104657,4.348621,1948.6,1947.5,1.23614117]
[1771528104860,7.997747,1948.6,1947.6,1.23614117]
[1771528105059,4.086316,1948.6,1947.6,1.23614117]
[1771528105769,5.23092739,1948.6,1947.6,1.23614117]
[1771528105956,1.28316994,1948.3,1947.5,2.20867451]
[1771528106355,2.42778133,1948.3,1947.5,0.925]
[1771528106982,2.42778133,1948.3,1947.1,1.28393479]
[1771528106983,20.231527,1948.0,1947.1,1.28393479]
[1771528107773,18.746527,1948.0,1947.1,1.28393479]
[1771528107979,1.28343344,1947.9,1947.0,5.13598681]
[1771528108664,1.28343344,1947.9,1947.0,1.2840267]
[1771528108857,2.42804483,1947.9,1947.0,1.2840267]
[1771528110493,2.42804483,1947.9,1947.2,0.001]
[1771528111866,1.14461139,1947.8,1947.2,0.001]
[1771528112294,1.28356523,1947.7,1947.2,0.001]
[1771528112868,2.42817662,1947.7,1947.2,0.001]
[1771528113097,19.470076,1947.6,1947.0,0.001]
[1771528113298,1.14461139,1947.5,1946.6,0.001]
[1771528113606,1.14461139,1947.2,1946.6,0.001]
[1771528113809,1.14461139,1947.5,1946.6,0.001]
[1771528113978,2.350499,1947.4,1946.6,1.28527979]
[1771528114183,1.28376296,1947.4,1946.6,1.23714117]
[1771528114385,5.13428371,1947.7,1946.6,1.23714117]
[1771528114386,5.13478818,1947.6,1946.6,1.23714117]
[1771528114570,1.28349933,1947.8,1946.8,1.23614117]
[1771528115011,1.28345592,1947.9,1946.8,1.23614117]
[1771528115876,23.53674039,1947.7,1946.7,0.925]
[1771528116080,20.63311239,1947.5,1946.7,0.925]
[1771528116300,1.28382889,1947.3,1946.7,0.925]
[1771528116499,1.28382889,1947.3,1946.7,2.20921047]
[1771528116703,1.28382889,1947.3,1946.7,0.925]
[1771528116904,1.28382889,1947.3,1946.7,2.20922153]
[1771528117098,1.28382889,1947.3,1946.7,0.925]
[1771528117819,2.50076419,1947.3,1946.6,0.001]
[1771528119819,3.159292,1947.2,1946.6,0.001]
[1771528120612,1.28390008,1947.2,1946.6,0.001]
[1771528123791,8.895994,1947.4,1946.6,0.001]
[1771528124119,8.895994,1947.4,1946.6,1.24213246]
[1771528124315,8.895994,1947.4,1946.6,1.18213246]
[1771528125116,0.0011,1947.2,1946.7,0.001]
[1771528127704,1.2680353,1947.2,1946.7,0.001]
[1771528128311,2.55089606,1947.1,1946.7,0.001]
[1771528128510,1.28499482,1947.2,1946.7,0.001]
[1771528128713,0.0011,1947.2,1946.7,1.24213246]
[1771528130126,1.28500556,1947.2,1946.7,1.24213246]
[1771528130328,0.0011,1947.2,1946.7,0.001]
[1771528131099,0.0011,1947.2,1946.3,0.001]
[1771528131100,4.030401,1947.1,1946.3,0.001]
[1771528131317,1.3499553,1947.2,1946.3,0.001]
[1771528131318,1.2669353,1947.0,1946.3,0.001]
[1771528131520,1.2669353,1946.8,1946.3,0.001]
[1771528131830,1.2669353,1946.6,1945.7,2.52597205]
[1771528132199,1.2669353,1946.6,1945.7,1.24113246]
[1771528132400,1.28435653,1946.5,1945.7,1.24113246]
[1771528132602,2.55129183,1946.5,1945.7,2.52600558]
[1771528133128,2.55129183,1946.5,1945.7,2.52601147]
[1771528133434,1.28434417,1946.6,1945.6,1.24113246]
[1771528133732,1.28409266,1946.9,1945.6,1.24113246]
[1771528133907,1.28406691,1947.0,1945.6,1.24113246]
[1771528134409,1.28406691,1947.0,1945.8,1.24113246]
[1771528135007,2.20900797,1947.1,1945.8,1.24113246]
[1771528136306,0.925,1947.1,1945.8,1.24113246]
[1771528136539,0.0011,1947.2,1946.2,1.24113246]
[1771528136710,0.0011,1947.2,1946.3,1.24113246]
[1771528137105,0.0011,1947.2,1946.2,0.926]
[1771528137106,1.2669353,1947.1,1946.2,0.926]
[1771528137326,1.2669353,1947.1,1946.2,2.16713246]
[1771528138432,1.2840267,1947.0,1946.3,1.28448851]
[1771528138643,1.2669353,1946.9,1946.2,0.926]
[1771528139134,1.2669353,1946.9,1946.2,2.21055071]
[1771528140533,1.28415861,1946.8,1946.2,2.21055071]
[1771528140932,1.28406743,1947.0,1946.2,3.44704175]
[1771528141938,2.52764416,1947.0,1946.2,3.44704175]
[1771528143860,1.28512006,1947.1,1946.3,1.23649104]
[1771528145844,0.0011,1947.1,1946.4,1.28442252]
[1771528146238,0.0011,1947.1,1946.4,2.52091356]
[1771528146617,0.0011,1947.1,1946.5,1.29411517]
[1771528147329,1.33894065,1947.6,1946.6,1.29411517]
[1771528147652,0.08192,1947.7,1946.6,1.29411517]
[1771528147836,0.08192,1947.7,1946.8,1.29411517]
[1771528147837,1.28363113,1947.6,1946.8,1.29411517]
[1771528148251,1.28356523,1947.7,1946.8,1.29411517]
[1771528149357,1.33894065,1947.6,1946.8,1.29411517]
[1771528149828,1.28356523,1947.7,1947.0,1.29411517]
[1771528151037,2.62250588,1947.7,1946.9,1.28409266]
[1771528151440,2.62250588,1947.7,1946.9,2.57820783]
[1771528152767,1.33894065,1947.6,1946.6,1.29411517]
[1771528152934,1.33894065,1947.4,1946.3,2.57860368]
[1771528153133,1.33894065,1947.4,1946.4,1.29411517]
[1771528154463,1.33894065,1947.4,1946.4,1.29511517]
[1771528154859,1.33894065,1947.2,1946.4,2.5794731]
[1771528156168,1.33894065,1947.2,1946.4,1.28541748]
[1771528156535,1.33894065,1947.2,1946.5,1.29411517]
[1771528157040,2.62284413,1947.2,1946.5,2.57841872]
[1771528157446,2.62284413,1947.2,1946.4,1.28537083]
[1771528157972,2.62284413,1947.2,1946.4,0.001]
[1771528157973,1.33894065,1947.1,1946.4,0.001]
[1771528158172,1.33894065,1946.9,1946.3,0.001]
[1771528158466,1.33894065,1946.7,1946.3,0.001]
[1771528159174,1.28429055,1946.6,1946.3,0.001]
[1771528159373,2.6232312,1946.6,1946.3,0.001]
[1771528161267,1.28409001,1947.0,1946.3,1.29511517]
[1771528161478,2.20899042,1947.1,1946.3,1.29511517]
[1771528162041,0.925,1947.1,1946.3,1.29511517]
[1771528163162,0.925,1947.1,1946.4,2.57853769]
[1771528163540,2.62284132,1947.2,1946.4,2.57853769]
[1771528163970,1.33894065,1947.2,1946.5,1.29411517]
[1771528164346,2.62284115,1947.2,1946.5,1.29411517]
[1771528166477,2.62284115,1947.2,1946.6,1.28429055]
[1771528166646,1.33894065,1947.1,1946.4,1.28436119]
[1771528166841,1.33894065,1947.1,1946.4,2.57847636]
[1771528167045,1.2839005,1947.2,1946.5,1.29411517]
[1771528167453,1.33894065,1947.3,1946.5,1.29411517]
[1771528167645,2.62278468,1947.3,1946.5,1.29411517]
[1771528169247,5.13565452,1947.6,1946.5,1.29411517]
[1771528169248,1.33894065,1947.2,1946.5,1.29411517]
[1771528169647,0.0011,1947.0,1946.5,1.29411517]
[1771528170840,0.0011,1947.6,1946.7,1.29411517]
[1771528171045,1.33894065,1948.0,1946.7,1.29411517]
[1771528171256,2.62231196,1948.0,1946.9,1.29411517]
[1771528171445,1.33894065,1948.0,1947.0,1.29411517]
[1771528172049,2.6223369,1948.0,1947.0,1.29411517]
[1771528173285,2.6223369,1948.0,1947.2,1.29411517]
[1771528174292,1.33894065,1947.9,1947.1,1.28396076]
[1771528174862,1.33894065,1947.9,1947.1,2.57807593]
[1771528175176,1.33894065,1947.8,1947.1,1.28396076]
[1771528175371,1.28356523,1947.7,1947.0,5.13584304]
[1771528176362,2.62250588,1947.7,1947.0,1.2840267]
[1771528176565,1.33894065,1947.6,1947.0,1.2840267]
[1771528177179,1.33894065,1947.6,1946.9,2.21004658]
[1771528177372,2.5452308,1947.5,1946.9,2.21004658]
[1771528177885,2.5452308,1947.5,1946.9,0.926]
[1771528178301,1.26153376,1947.4,1946.9,0.926]
[1771528179176,1.28369704,1947.5,1946.9,2.21008774]
[1771528179496,1.26153376,1947.5,1946.9,2.21008774]
[1771528179705,1.26153376,1947.8,1947.0,1.21837506]
[1771528181272,1.26153376,1947.8,1947.1,1.28396076]
[1771528181273,1.28356523,1947.7,1947.1,1.28396076]
[1771528181474,1.28356523,1947.7,1947.0,2.50235871]
[1771528183074,1.26153376,1948.1,1947.1,1.21837506]
[1771528183276,1.26153376,1948.1,1947.3,1.16589753]
[1771528183572,2.5446728,1948.4,1947.3,1.16589753]
[1771528183902,1.26153376,1948.3,1947.3,1.16589753]
[1771528184270,0.0011,1947.8,1947.3,1.16589753]
[1771528184472,0.0011,1947.8,1947.1,1.28491698]
[1771528184473,1.26263376,1947.8,1947.1,1.28491698]
[1771528185505,1.28356523,1947.7,1947.1,1.28491698]
[1771528186077,2.54509899,1947.7,1947.1,1.28491698]
[1771528186305,2.54509899,1947.7,1947.1,0.001]
[1771528186306,1.26153376,1947.6,1947.1,0.001]
[1771528187711,1.26153376,1947.4,1947.0,0.001]
[1771528188201,1.26153376,1947.4,1946.4,5.13847776]
[1771528188202,1.26153376,1947.4,1946.4,1.28537337]
[1771528188403,1.26153376,1947.2,1946.4,0.001]
[1771528188604,1.26153376,1947.0,1946.4,1.28540992]
[1771528188981,1.26153376,1947.3,1946.4,1.28540992]
[1771528189383,1.26153376,1947.3,1946.4,2.4868992]
[1771528189578,2.5453758,1947.3,1946.4,2.4868992]
[1771528190199,1.26153376,1947.3,1946.4,2.4868992]
[1771528190626,1.26153376,1947.3,1946.5,1.20098211]
[1771528190799,2.54536501,1947.3,1946.5,1.20098211]
[1771528191395,1.26153376,1947.3,1946.5,1.20098211]
[1771528191704,1.26153376,1947.3,1946.6,1.28429055]
[1771528192519,0.925,1947.4,1946.6,2.48415211]
[1771528192797,1.26263376,1947.8,1946.7,1.19986156]
[1771528193012,2.5461374,1947.8,1946.7,1.19986156]
[1771528193200,1.26263376,1947.8,1946.7,1.19986156]
[1771528193604,2.54614697,1947.8,1946.9,1.19927573]
[1771528194617,1.26263376,1947.8,1946.9,1.19927573]
[1771528195125,2.54614543,1947.8,1946.9,1.19927573]
[1771528195308,1.26153376,1947.7,1946.8,1.28415861]
[1771528196021,1.28363113,1947.6,1946.7,5.13663447]
[1771528196518,2.54515097,1947.7,1946.7,6.33406653]
[1771528196726,1.26153376,1947.6,1946.7,6.33406653]
[1771528197194,0.0011,1947.8,1946.8,1.19679023]
[1771528197611,0.0011,1947.8,1947.0,1.19679023]
[1771528198197,0.0011,1947.8,1947.1,1.28396076]
[1771528198523,0.0011,1947.8,1947.2,1.19612972]
[1771528200207,0.0011,1947.8,1947.3,1.28382889]
[1771528200437,0.0011,1947.8,1947.4,1.19476708]
[1771528202347,1.26153376,1948.2,1947.5,1.28369704]
[1771528202502,5.21421329,1948.5,1947.5,1.28369704]
[1771528202503,2.58469686,1948.5,1947.6,1.19391279]
[1771528202702,1.30165863,1948.4,1947.6,0.925]
[1771528203136,1.30165863,1948.4,1947.6,2.11816309]
[1771528203649,1.28300492,1948.6,1947.7,1.19316309]
[1771528203841,2.58457318,1948.7,1947.7,1.19316309]
[1771528204356,1.30165863,1948.6,1947.8,1.28349933]
[1771528204650,1.30165863,1948.2,1947.6,0.925]
[1771528204821,1.30165863,1948.2,1947.2,1.28384512]
[1771528205009,1.30165863,1948.0,1947.2,1.28384512]
[1771528206017,1.30165863,1948.3,1947.3,1.19088276]
[1771528206450,2.58489443,1948.2,1947.4,1.28376296]
[1771528207021,1.24168535,1948.1,1947.4,1.28376296]
[1771528207416,1.24168535,1948.1,1947.1,1.28396076]
[1771528208229,1.24168535,1948.1,1947.2,1.19254843]
[1771528208656,2.52499252,1948.1,1947.3,2.47637732]
[1771528209370,1.24168535,1948.1,1947.3,2.47637732]
[1771528209549,2.52499042,1948.1,1947.3,2.47637732]
[1771528210766,1.24168535,1948.0,1947.3,1.28382889]
[1771528211061,1.28330507,1948.1,1946.8,1.28510817]
[1771528211062,1.24168535,1947.6,1946.8,1.28510817]
[1771528211354,1.24168535,1947.6,1946.8,2.47510885]
[1771528211554,4.26378735,1947.8,1946.9,1.19000068]
[1771528211760,1.24168535,1947.8,1946.9,1.19000068]
[1771528212129,0.08192,1947.9,1946.8,1.28510817]
[1771528212130,1.24168535,1947.6,1946.8,1.28510817]
[1771528212555,1.24168535,1947.6,1946.8,0.001]
[1771528212760,1.24168535,1947.6,1946.5,0.001]
[1771528212761,1.24168535,1947.2,1946.5,0.001]
[1771528212965,1.24168535,1946.8,1945.8,0.001]
[1771528213168,1.24168535,1946.3,1945.8,0.001]
[1771528213667,1.24168535,1946.1,1945.8,0.001]
[1771528213971,1.24168535,1946.1,1944.9,1.18915705]
[1771528213972,1.24168535,1945.5,1944.4,1.28571185]
[1771528214172,1.24168535,1945.1,1944.5,1.286677]
[1771528214376,1.24168535,1945.4,1944.5,0.001]
[1771528214541,0.08192,1945.5,1944.5,1.28667091]
[1771528214542,1.24168535,1945.5,1944.5,1.28667091]
[1771528214746,1.24168535,1945.4,1944.5,0.001]
[1771528215480,1.24168535,1945.7,1944.5,1.18836738]
[1771528216689,1.24168535,1945.8,1944.6,2.47210095]
[1771528217099,12.720091,1945.7,1944.6,2.47210095]
[1771528217296,3.97287028,1945.9,1944.6,1.28561143]
[1771528217297,1.24168535,1945.4,1944.6,1.28561143]
[1771528217866,2.772,1945.7,1944.7,1.18447938]
[1771528218102,1.24168535,1945.8,1944.7,1.18447938]
[1771528218694,1.28473439,1946.0,1944.9,1.18447938]
[1771528219296,2.52630611,1946.1,1945.0,1.18345855]
[1771528219497,2.52630611,1946.1,1944.9,0.926]
[1771528219498,1.24168535,1945.9,1944.9,0.926]
[1771528222206,1.24168535,1945.8,1944.5,1.18136713]
[1771528222375,1.24168535,1945.8,1944.6,1.18036713]
[1771528222769,1.24168535,1945.8,1944.7,2.46591245]
[1771528223410,1.24168535,1945.7,1944.7,2.46591245]
[1771528225101,1.24168535,1945.5,1944.7,1.28554532]
[1771528225983,2.52653727,1945.8,1944.7,1.28554532]
[1771528226314,1.24168535,1945.8,1944.8,1.17611508]
[1771528226512,2.5265151,1945.8,1944.8,1.17611508]
[1771528226708,2.5265151,1945.8,1944.7,1.28554532]
[1771528226709,1.24168535,1945.7,1944.7,1.28554532]
[1771528227115,1.24168535,1945.7,1944.8,0.001]
[1771528229103,1.24168535,1945.7,1944.9,1.28541313]
[1771528229302,1.24168535,1945.6,1944.9,1.28541313]
[1771528230636,1.24168535,1945.6,1944.8,1.28643358]
[1771528231635,2.52666073,1945.6,1944.8,1.28643358]
[1771528231813,2.52754978,1945.9,1944.9,1.16948172]
[1771528232322,1.24168535,1945.8,1944.9,1.16948172]
[1771528232522,0.0011,1945.9,1944.9,1.16948172]
[1771528233230,2.52754047,1945.9,1944.9,1.16948172]
[1771528233536,1.24278535,1945.9,1944.9,1.16948172]
[1771528233916,1.24278535,1945.9,1945.0,1.28534704]
[1771528234113,0.0011,1945.9,1945.1,1.16720921]
[1771528234931,0.0011,1946.2,1945.2,1.35181766]
[1771528235929,0.0011,1946.2,1945.3,1.28514882]
[1771528236136,0.0011,1946.2,1945.4,2.0898056]
[1771528236752,1.24278535,1946.2,1945.4,0.926]
[1771528237940,1.23390304,1946.0,1945.4,2.21101935]
[1771528238144,1.23390304,1946.0,1945.4,2.21107483]
[1771528240248,0.0011,1946.2,1945.5,1.16019696]
[1771528240758,0.0011,1946.0,1945.5,1.16019696]
[1771528240970,0.0011,1946.2,1945.4,2.21107483]
[1771528241151,1.23390304,1946.1,1945.4,2.21107483]
[1771528242541,0.0011,1946.2,1945.4,2.21107483]
[1771528242729,1.28565826,1946.2,1945.4,2.21107483]
[1771528242914,2.5195613,1946.2,1945.4,2.21107483]
[1771528243110,2.51955901,1946.2,1945.4,2.21107483]
[1771528244315,1.23390304,1946.1,1945.4,2.21107483]
[1771528244543,2.5185238,1946.1,1945.4,2.21107483]
[1771528244747,1.23390304,1946.0,1945.4,0.926]
[1771528245055,1.23390304,1946.0,1945.2,0.001]
[1771528245648,1.23390304,1946.0,1945.2,1.28620506]
[1771528246553,1.23390304,1945.9,1945.2,0.001]
[1771528248654,1.23390304,1945.8,1945.2,0.001]
[1771528249470,1.23390304,1946.1,1945.2,0.001]
[1771528250362,1.23390304,1945.9,1945.2,0.001]
[1771528250574,1.23390304,1945.7,1945.2,0.001]
[1771528250776,2.51885369,1945.6,1945.2,0.001]
[1771528251451,1.23390304,1945.6,1945.2,0.001]
[1771528252661,2.51891974,1945.5,1945.2,0.001]
[1771528252860,1.23390304,1945.5,1945.2,0.001]
[1771528255976,2.51898281,1945.5,1945.2,0.001]
[1771528256368,1.23390304,1945.5,1945.2,0.001]
[1771528257471,2.5189267,1945.5,1945.2,0.001]
[1771528258587,1.23390304,1945.5,1945.2,0.001]
[1771528258756,2.51892039,1945.5,1945.2,0.001]
[1771528259254,2.51872162,1945.8,1945.2,0.001]
[1771528260177,1.23390304,1945.7,1945.2,0.001]
[1771528260578,1.28495065,1945.6,1945.2,0.001]
[1771528260785,2.51883811,1945.7,1945.2,0.001]
[1771528261090,1.21526842,1945.6,1945.2,0.001]
[1771528261380,6.35431431,1945.9,1945.2,0.001]
[1771528261579,1.21526842,1945.8,1945.2,0.001]
[1771528262193,1.21526842,1945.6,1944.8,0.001]
[1771528262402,1.21526842,1945.4,1944.8,0.001]
[1771528262566,1.21526842,1945.6,1944.9,1.28541313]
[1771528262767,1.21526842,1945.6,1944.8,1.13455542]
[1771528262987,1.21526842,1945.4,1944.8,0.001]
[1771528264385,1.21526842,1945.4,1944.8,1.28646927]
[1771528264557,1.21526842,1945.4,1944.8,0.001]
[1771528264961,1.21526842,1945.3,1944.8,0.001]
[1771528265691,1.21526842,1945.3,1944.7,0.001]
[1771528265910,1.21526842,1945.1,1944.9,0.001]
[1771528266074,27.062429,1945.0,1944.7,0.001]
[1771528266273,0.926,1945.3,1944.0,0.001]
[1771528266274,1.21526842,1944.9,1944.0,0.001]
[1771528266809,1.26276434,1944.7,1944.0,0.001]
[1771528267111,1.26276434,1944.5,1944.0,0.001]
[1771528267269,1.34468434,1944.3,1943.1,0.001]
[1771528267473,1.26276434,1944.1,1943.1,0.001]
[1771528267870,1.26276434,1943.7,1943.1,0.001]
[1771528268714,1.26276434,1943.3,1943.1,0.001]
[1771528268898,1.26276434,1943.3,1943.0,0.001]
[1771528269207,1.26276434,1943.3,1942.8,0.001]
[1771528269714,2.54904174,1943.6,1942.8,0.001]
[1771528269876,1.26276434,1943.5,1942.8,0.001]
[1771528270689,1.28640526,1943.4,1942.8,0.001]
[1771528270893,1.26276434,1943.3,1942.8,0.001]
[1771528271973,1.28617977,1943.8,1942.8,1.12338313]
[1771528272217,1.26276434,1943.7,1942.8,0.001]
[1771528272886,2.54897214,1943.7,1942.8,0.001]
[1771528273097,1.26276434,1943.7,1942.8,1.12203117]
[1771528273300,2.21211037,1943.9,1942.8,1.12203117]
[1771528273301,1.26276434,1944.0,1943.0,1.12103117]
[1771528273613,1.26276434,1944.0,1942.9,0.927]
[1771528274497,1.26276434,1944.0,1942.9,2.04667693]
[1771528274688,1.26276434,1944.0,1943.1,2.40492281]
[1771528275021,1.26276434,1944.2,1943.2,1.11831893]
[1771528275387,1.26276434,1944.2,1943.1,1.28660388]
[1771528275812,1.26276434,1944.0,1943.1,1.28660388]
[1771528276198,1.26276434,1944.0,1943.0,1.28662853]
[1771528276791,1.26276434,1943.8,1943.0,1.28662853]
[1771528278424,1.26276434,1943.8,1943.2,0.001]
[1771528278925,1.26276434,1943.6,1943.2,0.001]
[1771528279702,1.26276434,1943.9,1943.2,0.001]
[1771528280412,1.26276434,1944.2,1943.2,0.001]
[1771528281001,1.26276434,1944.1,1943.2,1.28753766]
[1771528281615,1.28593787,1944.2,1943.2,0.001]
[1771528281616,1.26276434,1943.7,1943.2,0.001]
[1771528282402,1.26276434,1944.0,1943.2,0.001]
[1771528283209,2.54890488,1943.8,1943.2,0.001]
[1771528285514,1.26276434,1943.8,1943.2,0.001]
[1771528285828,2.54891616,1943.8,1943.2,0.001]
[1771528286327,1.26276434,1943.8,1943.2,0.001]
[1771528286623,2.54891129,1943.8,1943.2,0.001]
[1771528286829,1.26276434,1943.7,1943.2,0.001]
[1771528287635,1.28627289,1943.6,1943.2,0.001]
[1771528287934,1.28627289,1943.6,1943.0,0.001]
[1771528287935,1.26276434,1943.5,1943.0,0.001]
[1771528288803,1.26276434,1943.8,1943.0,0.001]
[1771528289628,2.54910341,1943.5,1943.0,0.001]
[1771528289837,1.28630735,1943.6,1943.0,0.001]
[1771528290004,1.26276434,1943.6,1943.0,0.001]
[1771528291433,1.26276434,1943.6,1942.9,0.001]
[1771528291746,1.26276434,1943.2,1942.8,0.001]
[1771528292734,19.24051034,1943.2,1943.1,0.001]
[1771528292918,1.26276434,1943.1,1942.8,0.001]
[1771528293437,1.26276434,1943.1,1942.3,0.001]
[1771528293636,1.26276434,1942.9,1942.3,0.001]
[1771528295711,2.54954509,1942.9,1942.3,0.001]
[1771528295936,5.14616994,1943.2,1942.3,1.09175043]
[1771528295937,2.54930492,1943.2,1942.3,1.09175043]
[1771528296238,2.54936298,1943.2,1942.3,1.09175043]
[1771528296439,1.26276434,1943.1,1942.3,0.001]
[1771528298322,1.28667009,1943.0,1942.3,0.001]
[1771528299121,1.26276434,1943.1,1942.3,0.001]
[1771528299326,1.26276434,1943.1,1942.3,1.0880594]
[1771528299526,1.28649875,1943.3,1942.3,1.0880594]
[1771528299840,2.55967961,1943.3,1942.3,1.0880594]
[1771528300016,1.27318086,1943.2,1942.3,1.0880594]
[1771528300744,1.27318086,1943.2,1942.4,2.37131062]
[1771528302227,2.55972466,1943.2,1942.4,2.37131062]
[1771528302429,1.27318086,1943.1,1942.4,1.28706754]
[1771528303056,1.27318086,1943.1,1942.3,1.08244799]
[1771528303549,2.55967899,1943.3,1942.3,1.08244799]
[1771528303871,1.27318086,1943.3,1942.3,1.08244799]
[1771528304164,2.55965246,1943.3,1942.3,1.08244799]
[1771528304666,1.27318086,1943.2,1942.3,1.08244799]
[1771528305243,1.27318086,1943.2,1942.4,1.28706754]
[1771528305244,1.27318086,1943.0,1942.4,1.28706754]
[1771528305471,1.27318086,1943.0,1942.4,1.28806754]
[1771528306866,1.27318086,1943.0,1942.4,0.001]
[1771528307255,0.0011,1943.1,1942.4,0.001]
[1771528307569,0.0011,1943.1,1942.4,1.07686077]
[1771528310061,0.0011,1943.1,1942.5,1.28700128]
[1771528310376,0.0011,1943.1,1942.5,2.35863869]
[1771528311068,0.0011,1943.2,1942.6,1.07022994]
[1771528311774,0.0011,1943.2,1942.5,1.28700128]
[1771528311974,1.27428086,1943.2,1942.5,1.28700128]